bitfinex/quotes_BTCUSD_20210101
["timestamp","ask_amount","ask_price","bid_price","bid_amount"]
[1609475134453,0.65941923,29382.0,29381.0,3.84307173]
[1609475135255,0.65941923,29382.0,29381.0,4.03835568]
[1609475135456,0.65941923,29382.0,29381.0,3.84307173]
[1609475135756,0.65941923,29382.0,29381.0,2.84307173]
[1609475136559,0.65941923,29382.0,29381.0,3.16225108]
[1609475136560,0.41528889,29382.0,29381.0,3.16225108]
[1609475137263,0.0062073,29385.0,29384.0,1.711355]
[1609475137465,0.0062073,29385.0,29384.0,1.07163895]
[1609475137661,0.12144551,29387.0,29384.0,1.07163895]
[1609475137862,0.12144551,29387.0,29386.0,0.53264883]
[1609475138065,0.12144551,29387.0,29386.0,1.52764883]
[1609475139473,1.12144551,29387.0,29386.0,1.52764883]
[1609475139667,2.31541551,29387.0,29386.0,0.17132283]
[1609475140081,2.48541551,29387.0,29386.0,0.17132283]
[1609475140484,2.47541551,29387.0,29386.0,0.17132283]
[1609475140784,2.69541551,29387.0,29386.0,0.17132283]
[1609475140981,1.69541551,29387.0,29386.0,0.17132283]
[1609475144388,1.72888363,29387.0,29386.0,0.17132283]
[1609475144592,0.70716582,29382.0,29381.0,0.65855173]
[1609475144786,0.70716582,29382.0,29381.0,0.38432173]
[1609475144986,0.70716582,29382.0,29381.0,0.55981625]
[1609475145387,0.70716582,29382.0,29381.0,0.66299481]
[1609475146328,4.99853582,29382.0,29381.0,0.12613029]
[1609475146524,5.11946901,29382.0,29381.0,0.02295173]
[1609475146720,6.95226901,29382.0,29381.0,0.02295173]
[1609475146924,7.74573713,29382.0,29381.0,0.02295173]
[1609475147324,7.71226901,29382.0,29381.0,0.02295173]
[1609475147823,8.28399516,29382.0,29381.0,0.02295173]
[1609475148196,4.45470005,29382.0,29381.0,0.02295173]
[1609475148395,4.57894927,29382.0,29381.0,0.02295173]
[1609475148795,4.04073713,29382.0,29381.0,0.02295173]
[1609475148997,4.89254015,29382.0,29381.0,0.02295173]
[1609475149195,4.56073713,29382.0,29381.0,0.02295173]
[1609475149392,4.89254015,29382.0,29381.0,0.02295173]
[1609475149607,5.4254075,29382.0,29381.0,0.02295173]
[1609475150604,5.3011536,29382.0,29381.0,0.02295173]
[1609475150799,4.96935058,29382.0,29381.0,0.02295173]
[1609475151405,5.4252892,29382.0,29381.0,0.02295173]
[1609475151605,5.09348618,29382.0,29381.0,0.02295173]
[1609475152206,5.20000379,29382.0,29381.0,0.02295173]
[1609475152810,4.68000379,29382.0,29381.0,0.02295173]
[1609475153018,3.64653567,29382.0,29381.0,0.02295173]
[1609475153236,3.00226901,29382.0,29381.0,0.02295173]
[1609475153434,2.24226901,29382.0,29381.0,0.02295173]
[1609475153633,1.40946901,29382.0,29381.0,0.02295173]
[1609475154239,3.05946901,29382.0,29381.0,0.02295173]
[1609475154537,3.36446901,29382.0,29381.0,0.02295173]
[1609475155034,1.71446901,29382.0,29381.0,0.02295173]
[1609475155734,2.54736901,29382.0,29381.0,0.02295173]
[1609475157741,1.71446901,29382.0,29381.0,0.02295173]
[1609475157935,1.40946901,29382.0,29381.0,0.02295173]
[1609475158641,1.28853582,29382.0,29381.0,0.02295173]
[1609475160576,1.41311,29382.0,29381.0,0.02295173]
[1609475160767,2.24591,29382.0,29381.0,0.02295173]
[1609475161470,2.24591,29382.0,29381.0,0.00977366]
[1609475161772,2.24310921,29382.0,29381.0,0.00154356]
[1609475162606,2.49810921,29382.0,29381.0,0.00154356]
[1609475163424,2.49810921,29382.0,29380.0,0.79887926]
[1609475163425,4.294e-05,29381.0,29380.0,0.79887926]
[1609475164228,4.294e-05,29381.0,29380.0,2.61024926]
[1609475164422,4.294e-05,29381.0,29380.0,3.03024926]
[1609475164830,4.294e-05,29381.0,29380.0,1.52711837]
[1609475165032,0.68940797,29382.0,29380.0,1.52711837]
[1609475165332,0.68940797,29382.0,29380.0,0.74574837]
[1609475166232,0.82934089,29381.0,29380.0,1.05925926]
[1609475169561,1.70654089,29381.0,29380.0,1.11261493]
[1609475169764,1.70654089,29381.0,29380.0,1.41831618]
[1609475170961,1.70654089,29381.0,29380.0,1.02331618]
[1609475171365,1.70654089,29381.0,29380.0,2.02331618]
[1609475171766,1.70654089,29381.0,29380.0,2.04551931]
[1609475172065,1.70654089,29381.0,29380.0,2.60551931]
[1609475174102,1.70654089,29381.0,29380.0,1.60551931]
[1609475174704,1.70654089,29381.0,29380.0,2.55551931]
[1609475174906,1.70763493,29381.0,29380.0,2.55551931]
[1609475175108,1.70763493,29381.0,29380.0,1.55551931]
[1609475175308,1.70763493,29381.0,29380.0,2.55551931]
[1609475177205,1.70763493,29381.0,29380.0,1.55551931]
[1609475177410,1.70763493,29381.0,29380.0,2.55551931]
[1609475178462,1.70763493,29381.0,29380.0,2.65551931]
[1609475180869,1.70763493,29381.0,29380.0,5.15551931]
[1609475182472,1.70763493,29381.0,29380.0,2.65551931]
[1609475182980,1.68263493,29381.0,29380.0,5.15551931]
[1609475183172,0.80543493,29381.0,29380.0,5.15551931]
[1609475183398,0.80543493,29381.0,29380.0,2.65551931]
[1609475183599,0.80543493,29381.0,29380.0,2.79608375]
[1609475183801,0.80543493,29381.0,29380.0,4.10551931]
[1609475184700,0.80541616,29381.0,29380.0,4.24608374]
[1609475184900,0.80541616,29381.0,29380.0,6.54608374]
[1609475185798,0.80541616,29381.0,29380.0,5.49608374]
[1609475186401,0.80541616,29381.0,29380.0,4.23608374]
[1609475188501,0.80541616,29381.0,29380.0,2.78608374]
[1609475188705,0.80541616,29381.0,29380.0,1.78608374]
[1609475188920,0.80541616,29381.0,29380.0,3.38608374]
[1609475189121,0.80541616,29381.0,29380.0,4.38608374]
[1609475189925,0.8053698,29381.0,29380.0,4.38608374]
[1609475190823,0.68940797,29382.0,29381.0,5.88637]
[1609475190824,0.50477777,29382.0,29381.0,5.88637]
[1609475191022,0.50477777,29382.0,29381.0,7.28637]
[1609475191222,0.50477777,29382.0,29381.0,7.08637]
[1609475193422,0.50477777,29382.0,29381.0,2.33637]
[1609475193820,0.50477777,29382.0,29381.0,3.72137]
[1609475194728,0.00220001,29388.0,29385.0,0.36134]
[1609475194926,0.00220001,29388.0,29387.0,1.49436109]
[1609475195124,0.0024,29389.0,29387.0,1.49436109]
[1609475195425,0.0024,29389.0,29388.0,0.451296]
[1609475195622,0.0024,29389.0,29388.0,0.581296]
[1609475195826,0.43100001,29390.0,29388.0,0.581296]
[1609475196026,0.43100001,29390.0,29389.0,0.361281]
[1609475197223,0.43100001,29390.0,29389.0,0.3835897]
[1609475197625,0.42600001,29390.0,29389.0,0.3835897]
[1609475198224,0.42600001,29390.0,29389.0,0.5685897]
[1609475198454,0.342166,29390.0,29389.0,0.3835897]
[1609475198852,0.28826845,29390.0,29389.0,0.3835897]
[1609475199152,0.46374099,29390.0,29389.0,0.3835897]
[1609475200557,0.354633,29390.0,29389.0,0.3835897]
[1609475200954,0.17123421,29390.0,29389.0,0.3835897]
[1609475201453,0.11733666,29390.0,29389.0,0.3835897]
[1609475202257,0.11733666,29390.0,29389.0,0.4676157]
[1609475204081,0.11733666,29390.0,29389.0,0.9676157]
[1609475204284,0.11733666,29390.0,29389.0,0.8726157]
[1609475204685,0.11733666,29390.0,29389.0,0.6726157]
[1609475205192,0.21733666,29390.0,29389.0,0.6726157]
[1609475205490,0.82218666,29390.0,29389.0,0.1063347]
[1609475205792,2.12218666,29390.0,29389.0,0.1063347]
[1609475205985,1.1511861,29390.0,29389.0,0.1063347]
[1609475206185,0.8211861,29390.0,29389.0,0.1063347]
[1609475206385,1.6537861,29390.0,29389.0,0.1063347]
[1609475208344,1.77752294,29390.0,29389.0,0.1063347]
[1609475208647,2.05752294,29390.0,29389.0,0.1063347]
[1609475210266,1.59615294,29390.0,29389.0,0.1063347]
[1609475210965,0.76355294,29390.0,29389.0,0.4676147]
[1609475211166,0.58355294,29390.0,29389.0,0.4676147]
[1609475211566,0.58355294,29390.0,29389.0,0.4626147]
[1609475211964,0.79355294,29390.0,29389.0,0.4626147]
[1609475212365,0.69355294,29390.0,29389.0,0.4626147]
[1609475212665,0.79355294,29390.0,29389.0,0.4626147]
[1609475214986,0.79355294,29390.0,29389.0,0.1013347]
[1609475216290,1.15492294,29390.0,29389.0,0.1013347]
[1609475216492,1.98752294,29390.0,29389.0,0.1013347]
[1609475217191,2.98752294,29390.0,29389.0,0.1013347]
[1609475217392,3.25252294,29390.0,29389.0,0.1013347]
[1609475217591,4.13599106,29390.0,29389.0,0.1013347]
[1609475217791,3.28599106,29390.0,29389.0,0.1013347]
[1609475217992,3.70064384,29390.0,29389.0,0.1013347]
[1609475218388,4.80064384,29390.0,29389.0,0.1013347]
[1609475219025,3.28599106,29390.0,29389.0,0.1013347]
[1609475219524,3.25252294,29390.0,29389.0,0.1013347]
[1609475219924,3.66707766,29390.0,29389.0,0.1013347]
[1609475220124,2.25252294,29390.0,29389.0,0.1013347]
[1609475220730,2.25252294,29390.0,29389.0,0.0963347]
[1609475220930,2.27678878,29390.0,29389.0,0.0963347]
[1609475221824,1.44418878,29390.0,29389.0,0.0963347]
[1609475222125,1.31992294,29390.0,29389.0,0.0963347]
[1609475223225,1.31992294,29390.0,29389.0,0.11207243]
[1609475223727,2.25252294,29390.0,29389.0,0.11207243]
[1609475225639,2.15252294,29390.0,29389.0,0.11207243]
[1609475226637,2.25252294,29390.0,29389.0,0.11207243]
[1609475226942,1.41992294,29390.0,29389.0,0.11207243]
[1609475228754,1.31992294,29390.0,29389.0,0.11207243]
[1609475229353,1.29492294,29390.0,29389.0,0.11207243]
[1609475230762,1.39492294,29390.0,29389.0,0.11207243]
[1609475231160,1.29492294,29390.0,29389.0,0.11207243]
[1609475232362,1.02492294,29390.0,29389.0,0.11207243]
[1609475233359,1.02492294,29390.0,29389.0,0.2526368]
[1609475234980,0.78144294,29390.0,29389.0,0.2526368]
[1609475236680,0.57144294,29390.0,29389.0,0.2526368]
[1609475237686,0.21007294,29390.0,29389.0,0.56335243]
[1609475237884,0.21007294,29390.0,29389.0,3.10335243]
[1609475238562,0.55387417,29399.0,29391.0,0.9546718]
[1609475238860,0.7541,29400.0,29398.0,0.32907149]
[1609475239157,0.36137,29399.0,29398.0,0.55659149]
[1609475239548,0.35637,29399.0,29398.0,0.55659149]
[1609475239757,0.35637,29399.0,29398.0,0.69715586]
[1609475240356,0.35637,29399.0,29398.0,0.69615586]
[1609475242154,1.00637,29399.0,29398.0,0.69615586]
[1609475242655,1.26637,29399.0,29398.0,0.69615586]
[1609475243157,0.61637,29399.0,29398.0,0.69615586]
[1609475243582,0.61637,29399.0,29398.0,0.46863586]
[1609475244582,0.60137,29399.0,29398.0,0.46863586]
[1609475244784,0.59537,29399.0,29398.0,0.46863586]
[1609475244987,0.69537,29399.0,29398.0,0.46863586]
[1609475246083,0.68537,29399.0,29398.0,0.46863586]
[1609475247185,0.68537,29399.0,29398.0,0.14056437]
[1609475247384,0.385,29397.0,29395.0,1.1699]
[1609475247585,0.385,29397.0,29395.0,1.27266201]
[1609475247783,0.1,29396.0,29395.0,1.63399001]
[1609475247988,0.3852,29397.0,29396.0,0.035875]
[1609475248183,0.0002,29397.0,29396.0,0.035875]
[1609475248683,0.40856414,29398.0,29396.0,0.035875]
[1609475248890,0.40856414,29398.0,29397.0,0.02813143]
[1609475249110,1.35356414,29398.0,29397.0,0.02813143]
[1609475249808,1.35356414,29398.0,29397.0,0.13163143]
[1609475250008,0.70356414,29398.0,29397.0,0.12663143]
[1609475250311,1.90356414,29398.0,29397.0,0.02313143]
[1609475250511,2.12856414,29398.0,29397.0,0.02313143]
[1609475251011,0.92856414,29398.0,29397.0,0.02313143]
[1609475251210,1.82856414,29398.0,29397.0,0.02313143]
[1609475251411,0.92856414,29398.0,29397.0,0.12512107]
[1609475251811,0.92856414,29398.0,29397.0,0.48644907]
[1609475252416,1.38989214,29398.0,29397.0,0.1636958]
[1609475252823,2.29124192,29398.0,29397.0,0.1636958]
[1609475253116,5.19124192,29398.0,29397.0,0.1636958]
[1609475253587,5.60140014,29398.0,29397.0,0.12568235]
[1609475253787,5.71902684,29398.0,29397.0,0.12568235]
[1609475253987,6.23902684,29398.0,29397.0,0.12068235]
[1609475254185,6.74892684,29398.0,29397.0,0.12068235]
[1609475254385,6.74892684,29398.0,29397.0,0.12568782]
[1609475254680,3.84392684,29398.0,29397.0,0.0231369]
[1609475254890,3.84495164,29398.0,29397.0,0.0231369]
[1609475255291,3.32495164,29398.0,29397.0,0.0231369]
[1609475255490,3.84495164,29398.0,29397.0,0.0231369]
[1609475255691,3.84495164,29398.0,29397.0,0.12452444]
[1609475256593,3.32495164,29398.0,29397.0,0.12452444]
[1609475256793,3.84495164,29398.0,29397.0,0.0231369]
[1609475256993,5.49495164,29398.0,29397.0,0.0231369]
[1609475257292,5.82675466,29398.0,29397.0,0.0231369]
[1609475258095,6.15779206,29398.0,29397.0,0.0231369]
[1609475259414,5.82598904,29398.0,29397.0,0.0231369]
[1609475259622,5.82598904,29398.0,29389.0,0.084026]
[1609475259623,6.12543145,29398.0,29389.0,0.084026]
[1609475259823,4.75,29390.0,29389.0,0.084026]
[1609475260022,5.40079612,29390.0,29389.0,0.084026]
[1609475260226,7.29267974,29390.0,29389.0,0.084026]
[1609475260623,8.29267974,29390.0,29389.0,0.084026]
[1609475261822,9.12547974,29390.0,29389.0,0.084026]
[1609475263319,9.12547974,29390.0,29389.0,0.03691466]
[1609475266649,8.74920733,29390.0,29389.0,0.03691466]
[1609475267547,8.82020122,29390.0,29389.0,0.03691466]
[1609475273055,8.83795196,29390.0,29389.0,0.03691466]
[1609475273779,8.82020122,29390.0,29389.0,0.03691466]
[1609475275781,8.82020122,29390.0,29389.0,0.03191466]
[1609475278083,8.82020122,29390.0,29389.0,0.01691466]
[1609475278884,4.5167331,29390.0,29389.0,0.01691466]
[1609475279214,4.3607331,29390.0,29389.0,0.01691466]
[1609475279811,4.3607331,29390.0,29389.0,0.02838975]
[1609475280012,4.8807331,29390.0,29389.0,0.02838975]
[1609475280410,4.3607331,29390.0,29389.0,0.02838975]
[1609475280809,4.8807331,29390.0,29389.0,0.02838975]
[1609475282511,5.29230227,29390.0,29389.0,0.02838975]
[1609475282949,4.77230227,29390.0,29389.0,0.02838975]
[1609475285167,4.70130838,29390.0,29389.0,0.02838975]
[1609475285670,2.76850838,29390.0,29389.0,0.02838975]
[1609475285872,2.76850838,29390.0,29389.0,0.23393975]
[1609475286066,2.40121012,29390.0,29389.0,0.23393975]
[1609475286272,1.40121012,29390.0,29389.0,0.23393975]
[1609475286669,0.98964095,29390.0,29389.0,0.23393975]
[1609475286870,0.99064095,29390.0,29389.0,0.23393975]
[1609475287467,1.14564095,29390.0,29389.0,0.23393975]
[1609475288882,1.14464095,29390.0,29389.0,0.23393975]
[1609475289287,1.14564095,29390.0,29389.0,0.23393975]
[1609475289591,2.34564095,29390.0,29389.0,0.23393975]
[1609475289789,3.17814095,29390.0,29389.0,0.23393975]
[1609475289990,1.97814095,29390.0,29389.0,0.23393975]
[1609475291590,1.97714095,29390.0,29389.0,0.23393975]
[1609475292195,1.97814095,29390.0,29389.0,0.23393975]
[1609475292490,1.97814095,29390.0,29389.0,0.02838975]
[1609475293592,1.97814095,29390.0,29389.0,0.02859415]
[1609475293993,1.97714095,29390.0,29389.0,0.02859415]
[1609475294216,1.97814095,29390.0,29389.0,0.02859415]
[1609475294416,1.97314095,29390.0,29389.0,0.02859415]
[1609475295816,1.97314095,29390.0,29389.0,0.02720821]
[1609475296518,1.97214095,29390.0,29389.0,0.02720821]
[1609475296720,2.97214095,29390.0,29389.0,0.02720821]
[1609475296922,3.42087027,29390.0,29389.0,0.02720821]
[1609475297524,4.37087027,29390.0,29389.0,0.02720821]
[1609475297724,4.70267329,29390.0,29389.0,0.02720821]
[1609475298022,4.66920517,29390.0,29389.0,0.02720821]
[1609475298326,4.66820517,29390.0,29389.0,0.0125143]
[1609475298636,4.70267329,29390.0,29389.0,0.0125143]
[1609475299032,3.74267329,29390.0,29389.0,0.0125143]
[1609475300142,3.74167329,29390.0,29389.0,0.0125143]
[1609475300341,3.74267329,29390.0,29389.0,0.0125143]
[1609475300643,3.70920517,29390.0,29389.0,0.0125143]
[1609475300940,3.93087027,29390.0,29389.0,0.0125143]
[1609475303044,3.41087027,29390.0,29389.0,0.0125143]
[1609475303244,3.74267329,29390.0,29389.0,0.0125143]
[1609475303444,3.41087027,29390.0,29389.0,0.0125143]
[1609475303681,3.93087027,29390.0,29389.0,0.0125143]
[1609475304180,3.37740215,29390.0,29389.0,0.0125143]
[1609475304685,3.70920517,29390.0,29389.0,0.0125143]
[1609475304884,4.22920517,29390.0,29389.0,0.0125143]
[1609475305083,3.89740215,29390.0,29389.0,0.0125143]
[1609475305286,3.89740215,29390.0,29389.0,0.02325222]
[1609475305888,3.93087027,29390.0,29389.0,0.02325222]
[1609475306085,3.89740215,29390.0,29389.0,0.02325222]
[1609475310508,4.22920517,29390.0,29389.0,0.02325222]
[1609475310707,3.89740215,29390.0,29389.0,0.02325222]
[1609475313206,4.22920517,29390.0,29389.0,0.02325222]
[1609475317753,3.89740215,29390.0,29389.0,0.02325222]
[1609475318352,4.22920517,29390.0,29389.0,0.02325222]
[1609475321282,3.70920517,29390.0,29389.0,0.02325222]
[1609475321478,4.22920517,29390.0,29389.0,0.02325222]
[1609475322278,3.89740215,29390.0,29389.0,0.02325222]
[1609475322480,3.37740215,29390.0,29389.0,0.02325222]
[1609475322678,3.70920517,29390.0,29389.0,0.02325222]
[1609475324908,4.22920517,29390.0,29389.0,0.02325222]
[1609475325107,3.89740215,29390.0,29389.0,0.02325222]
[1609475325710,4.22920517,29390.0,29389.0,0.02325222]
[1609475327810,4.22920517,29390.0,29389.0,0.02304782]
[1609475329065,3.70920517,29390.0,29389.0,0.02304782]
[1609475329861,3.37740215,29390.0,29389.0,0.02304782]
[1609475330076,2.35,29389.0,29385.0,1.0]
[1609475330276,0.5102,29387.0,29385.0,1.1405641]
[1609475330477,0.361357,29386.0,29385.0,1.1405641]
[1609475330672,0.571357,29386.0,29385.0,1.1405641]
[1609475330879,0.571357,29386.0,29385.0,0.15162476]
[1609475331077,0.571357,29386.0,29385.0,0.01106066]
[1609475331279,0.67997135,29386.0,29385.0,0.01106066]
[1609475331777,1.51257135,29386.0,29385.0,0.01106066]
[1609475332477,1.51257135,29386.0,29385.0,1.01106066]
[1609475332779,1.51257135,29386.0,29385.0,1.15162476]
[1609475333482,0.67997135,29386.0,29385.0,1.15162476]
[1609475333909,0.67997135,29386.0,29385.0,1.01106066]
[1609475334604,0.67997135,29386.0,29385.0,0.01106066]
[1609475334905,0.31861435,29386.0,29385.0,0.01106066]
[1609475335307,0.67997135,29386.0,29385.0,0.01106066]
[1609475335506,0.67997135,29386.0,29385.0,1.01106066]
[1609475335706,0.31861435,29386.0,29385.0,0.15162476]
[1609475336407,0.10861435,29386.0,29385.0,0.15162476]
[1609475336605,0.10861435,29386.0,29385.0,0.01106066]
[1609475336807,0.10793515,29387.0,29385.0,1.01106066]
[1609475337006,0.361357,29386.0,29385.0,0.01106066]
[1609475337406,0.3611526,29386.0,29385.0,0.01106066]
[1609475337606,0.501362,29386.0,29385.0,0.01106066]
[1609475338310,0.60926309,29386.0,29385.0,0.15162476]
[1609475338510,0.46926309,29386.0,29385.0,0.15162476]
[1609475338714,0.46926309,29386.0,29385.0,1.15162476]
[1609475338907,0.10790109,29386.0,29385.0,1.15162476]
[1609475339111,0.10790109,29386.0,29385.0,1.51298676]
[1609475339522,0.10790109,29386.0,29385.0,1.37242266]
[1609475339723,0.10790109,29386.0,29385.0,1.66742266]
[1609475341632,0.19079513,29386.0,29385.0,1.66742266]
[1609475341832,0.19079513,29386.0,29385.0,1.37242266]
[1609475342430,0.19079513,29386.0,29385.0,0.37242266]
[1609475343030,0.19079513,29386.0,29385.0,1.37242266]
[1609475343899,0.19079513,29386.0,29385.0,1.51298676]
[1609475344703,0.19079513,29386.0,29385.0,1.50798676]
[1609475344901,0.19079513,29386.0,29385.0,1.95298676]
[1609475346110,0.19079513,29386.0,29385.0,0.50798676]
[1609475346420,0.19079513,29386.0,29385.0,0.36742266]
[1609475346421,0.10790109,29386.0,29385.0,0.36742266]
[1609475346611,0.19078381,29386.0,29385.0,0.36742266]
[1609475347008,0.08288272,29386.0,29385.0,0.36742266]
[1609475347208,0.08288272,29386.0,29385.0,0.50798676]
[1609475347416,0.44424472,29386.0,29385.0,0.14662476]
[1609475347611,0.63417127,29386.0,29385.0,0.14662476]
[1609475347913,1.46697127,29386.0,29385.0,0.14662476]
[1609475348110,2.76697127,29386.0,29385.0,0.14662476]
[1609475348312,3.03197127,29386.0,29385.0,0.00606066]
[1609475348945,2.76534957,29386.0,29385.0,0.00606066]
[1609475349141,2.38197127,29386.0,29385.0,0.00606066]
[1609475350740,1.73197127,29386.0,29385.0,0.00606066]
[1609475351443,2.48197127,29386.0,29385.0,0.00106066]
[1609475351742,2.06377429,29386.0,29385.0,0.00106066]
[1609475351943,4.66377429,29386.0,29385.0,0.00106066]
[1609475352146,4.82072429,29386.0,29385.0,0.00106066]
[1609475352344,4.85419241,29386.0,29385.0,0.00106066]
[1609475352645,5.23756385,29386.0,29385.0,0.00106066]
[1609475352839,2.63756385,29386.0,29385.0,0.00106066]
[1609475353045,3.28756385,29386.0,29385.0,0.00106066]
[1609475354047,4.38756385,29386.0,29385.0,0.00106066]
[1609475354243,3.28756385,29386.0,29385.0,0.00106066]
[1609475354869,3.28756385,29386.0,29380.0,0.06555692]
[1609475354870,2.5,29385.0,29380.0,0.06555692]
[1609475355070,0.5103,29383.0,29380.0,0.06555692]
[1609475355270,0.98816502,29382.0,29380.0,0.06555692]
[1609475355473,0.656362,29382.0,29380.0,0.06555692]
[1609475355870,1.14954848,29381.0,29380.0,0.06555692]
[1609475356069,1.43954848,29381.0,29380.0,0.06555692]
[1609475357871,2.43954848,29381.0,29380.0,0.06555692]
[1609475358573,2.64550848,29381.0,29380.0,0.06555692]
[1609475358835,6.66999736,29381.0,29380.0,0.06555692]
[1609475359134,6.66999736,29381.0,29375.0,0.0002044]
[1609475359135,6.70346548,29381.0,29375.0,0.0002044]
[1609475359338,3.911,29376.0,29375.0,0.0002044]
[1609475359539,5.49244193,29376.0,29375.0,0.0002044]
[1609475359732,5.49244193,29376.0,29375.0,4.4e-06]
[1609475359936,6.60013081,29376.0,29369.0,0.3882]
[1609475360148,5.0081521,29370.0,29369.0,0.3882]
[1609475360340,5.0081521,29370.0,29369.0,0.3878]
[1609475360341,6.56708222,29370.0,29369.0,0.3878]
[1609475360641,6.56708222,29370.0,29369.0,0.3864]
[1609475360841,7.91108222,29370.0,29369.0,0.3856]
[1609475361038,8.3976141,29370.0,29369.0,0.3856]
[1609475361839,8.3976141,29370.0,29369.0,0.40169696]
[1609475362333,8.3976141,29370.0,29369.0,0.39169696]
[1609475363778,4.65380959,29370.0,29369.0,0.39169696]
[1609475364278,4.30970959,29370.0,29369.0,0.39169696]
[1609475364479,4.3035141,29370.0,29369.0,0.39169696]
[1609475364676,3.89624202,29370.0,29369.0,0.39169696]
[1609475365077,3.8941756,29370.0,29369.0,0.39169696]
[1609475365275,3.8941756,29370.0,29369.0,0.38169696]
[1609475365575,3.89211067,29370.0,29369.0,0.38169696]
[1609475365977,3.89004687,29370.0,29369.0,0.38169696]
[1609475366774,4.41004687,29370.0,29369.0,0.38169696]
[1609475368074,4.41110491,29370.0,29369.0,0.38169696]
[1609475368279,3.89110491,29370.0,29369.0,0.38169696]
[1609475370590,4.41110491,29370.0,29369.0,0.38169696]
[1609475371294,3.89110491,29370.0,29369.0,0.38169696]
[1609475371487,3.63295281,29370.0,29369.0,0.38169696]
[1609475372790,3.89110487,29370.0,29369.0,0.38169696]
[1609475374019,3.63295277,29370.0,29369.0,0.38169696]
[1609475374213,3.89110487,29370.0,29369.0,0.38169696]
[1609475374709,3.63295277,29370.0,29369.0,0.38169696]
[1609475374908,3.89110487,29370.0,29369.0,0.38169696]
[1609475375138,3.63295277,29370.0,29369.0,0.38169696]
[1609475376141,3.89110487,29370.0,29369.0,0.38169696]
[1609475376342,3.63295277,29370.0,29369.0,0.38169696]
[1609475376542,3.89110487,29370.0,29369.0,0.38169696]
[1609475376741,4.41110487,29370.0,29369.0,0.38169696]
[1609475376941,3.89110487,29370.0,29369.0,0.38169696]
[1609475377143,4.41110487,29370.0,29369.0,0.38169696]
[1609475377342,4.15295272,29370.0,29369.0,0.38169696]
[1609475377644,4.41110482,29370.0,29369.0,0.38169696]
[1609475377840,4.15295272,29370.0,29369.0,0.38169696]
[1609475378047,3.63295272,29370.0,29369.0,0.38169696]
[1609475378243,3.89110482,29370.0,29369.0,0.38169696]
[1609475378866,3.63295272,29370.0,29369.0,0.38169696]
[1609475379066,3.89110482,29370.0,29369.0,0.38169696]
[1609475379271,3.63295272,29370.0,29369.0,0.33871593]
[1609475379469,3.89110482,29370.0,29369.0,0.33871593]
[1609475379671,3.63295272,29370.0,29369.0,0.33871593]
[1609475380169,3.89110482,29370.0,29369.0,0.33871593]
[1609475380371,3.63295272,29370.0,29369.0,0.33871593]
[1609475380574,3.89110482,29370.0,29369.0,0.33871593]
[1609475381770,4.41110482,29370.0,29369.0,0.33871593]
[1609475382072,3.89105926,29370.0,29369.0,0.33871593]
[1609475382874,3.89312558,29370.0,29369.0,0.33871593]
[1609475383075,3.63497348,29370.0,29369.0,0.33871593]
[1609475383275,3.89312558,29370.0,29369.0,0.33871593]
[1609475383476,4.41312558,29370.0,29369.0,0.33871593]
[1609475383676,4.15497348,29370.0,29369.0,0.33871593]
[1609475383879,4.15704102,29370.0,29369.0,0.33871593]
[1609475384079,4.44866124,29370.0,29369.0,0.33871593]
[1609475384276,4.19257635,29370.0,29369.0,0.33871593]
[1609475384514,6.44257635,29370.0,29369.0,0.33871593]
[1609475384715,6.80832865,29370.0,29369.0,0.33871593]
[1609475385315,4.30017655,29370.0,29369.0,0.33871593]
[1609475385517,4.90017655,29370.0,29369.0,0.33871593]
[1609475385918,4.26670843,29370.0,29369.0,0.33871593]
[1609475386217,4.52486053,29370.0,29369.0,0.33871593]
[1609475386418,4.55832865,29370.0,29369.0,0.33871593]
[1609475386617,5.40832865,29370.0,29369.0,0.33871593]
[1609475386817,5.42610033,29370.0,29369.0,0.33871593]
[1609475387020,4.57596649,29370.0,29369.0,0.33871593]
[1609475387218,4.54249837,29370.0,29369.0,0.33871593]
[1609475387617,4.02249837,29370.0,29369.0,0.33871593]
[1609475387918,4.54249837,29370.0,29369.0,0.33871593]
[1609475388342,4.02249837,29370.0,29369.0,0.33871593]
[1609475388547,4.42664949,29370.0,29369.0,0.33871593]
[1609475388966,4.02249837,29370.0,29369.0,0.33871593]
[1609475389166,3.96921577,29370.0,29369.0,0.33871593]
[1609475389363,3.89819392,29370.0,29369.0,0.33871593]
[1609475389666,4.4270124,29370.0,29369.0,0.33871593]
[1609475390068,4.1688603,29370.0,29369.0,0.33871593]
[1609475390368,4.4270124,29370.0,29369.0,0.33871593]
[1609475390567,4.4270124,29370.0,29369.0,0.00617272]
[1609475390771,2.85,29369.0,29364.0,0.0004]
[1609475390975,1.361362,29365.0,29364.0,0.0004]
[1609475391173,0.361362,29365.0,29364.0,0.0004]
[1609475391372,0.47906773,29365.0,29364.0,0.0004]
[1609475391672,0.62406773,29365.0,29364.0,0.0004]
[1609475391924,1.45736773,29365.0,29364.0,0.0004]
[1609475394423,2.20736773,29365.0,29364.0,0.0004]
[1609475394923,2.47364275,29365.0,29364.0,0.0004]
[1609475395120,1.72364275,29365.0,29364.0,0.0004]
[1609475397948,1.72364275,29365.0,29362.0,0.0002]
[1609475398150,0.361362,29363.0,29359.0,1.30444572]
[1609475398351,0.361362,29360.0,29359.0,1.30444572]
[1609475398747,1.194762,29360.0,29359.0,1.40545357]
[1609475399051,1.3809814,29360.0,29359.0,1.30444572]
[1609475399348,1.2009814,29360.0,29359.0,1.30444572]
[1609475401047,1.2009814,29360.0,29359.0,1.19240697]
[1609475401292,1.2009814,29360.0,29359.0,1.29240697]
[1609475401493,0.8396194,29360.0,29359.0,1.85376897]
[1609475401801,0.00089914,29366.0,29360.0,1.10123332]
[1609475402001,0.00089914,29366.0,29365.0,4.0262445]
[1609475402199,0.00089914,29366.0,29365.0,6.31744725]
[1609475402503,8.36e-06,29371.0,29370.0,3.801598]
[1609475402707,0.8331,29372.0,29371.0,4.49124032]
[1609475402899,0.33158694,29379.0,29378.0,1.0]
[1609475403102,0.33157212,29381.0,29379.0,0.69290102]
[1609475403300,0.59447327,29385.0,29380.0,4.75]
[1609475403498,0.59447327,29385.0,29384.0,2.60549999]
[1609475403700,0.58447327,29385.0,29384.0,4.28264999]
[1609475403944,0.19920245,29385.0,29384.0,2.65264999]
[1609475404135,0.11112313,29385.0,29384.0,2.65264999]
[1609475404333,0.11112313,29385.0,29384.0,3.95480727]
[1609475404535,0.0008,29389.0,29386.0,0.33180302]
[1609475404733,0.0008,29389.0,29388.0,2.19277802]
[1609475404934,0.0008,29389.0,29388.0,3.19277802]
[1609475405448,0.0008,29389.0,29388.0,1.69277802]
[1609475405650,0.0008,29389.0,29388.0,1.360975]
[1609475405847,0.10233832,29389.0,29388.0,1.690975]
[1609475406052,0.0008,29389.0,29388.0,1.690975]
[1609475406250,0.0008,29389.0,29388.0,2.02277802]
[1609475407746,0.0008,29389.0,29388.0,1.02277802]
[1609475408254,0.9008,29389.0,29388.0,1.02277802]
[1609475408656,1.26628631,29389.0,29388.0,0.62636067]
[1609475408870,1.26628631,29389.0,29388.0,0.56350587]